Cogmind - Beta 9.6 @@@ ROGUE MODE // 2020.04.28 @ 20:10:59 // Winter2019/RPGLIKE Player: PhenomPhear Result: Destroyed by 8R-AWN with 8R-AWN's Boregun Performance ------------- Evolutions (0) 0 Regions Visited (3) 600 Robots Destroyed (18) 90 Value Destroyed (648) 648 Prototype IDs (2) 40 Alien Tech Used (0) 0 Bonus (835) 835 TOTAL SCORE: 2213 Bonus ------- High Alert Combat Kills 128 Follower Combat Kills 414 Aligned with FarCom 300 Friendly Fire -7 Cogmind --------- Core Integrity 0/600 Matter 229/300 Energy 21/160 System Corruption 1% Temperature Cool (11) Movement Walking (180) Ox2 Location -10/Exiles Parts ------- > --- POWER (1) -------- Light Nuclear Core > --- PROPULSION (1) --- Aluminum Leg > --- UTILITY (1) ------ (None) > --- WEAPON (2) ------- Firepult > --- INVENTORY (2) ---- (None) Peak State ------------ > --- POWER ------------ Light Nuclear Core > --- PROPULSION ------- Aluminum Leg > --- UTILITY ---------- (None) > --- WEAPON ----------- Firepult > --- INVENTORY -------- (None) [Rating: 24] Favorites ----------- Power Light Nuclear Core Power Core Light Nuclear Core Propulsion Aluminum Leg Leg Aluminum Leg Utility None Weapon Grenade Launcher Energy Cannon Firepult Launcher Grenade Launcher Special Weapon Welding Torch Build | -11 -10 -10 -10 ------- Run | Scr Mat Min Exi Slots Evolved 1 | . . . 1 Power . | . . . . Propulsion . | . . . . Utility . | . . . . Weapon 1 | . . . 1 Parts Attached 9 | . 2 . 7 Power 1 | . . . 1 Engine . | . . . . Core 1 | . . . 1 Reactor . | . . . . Propulsion 1 | . . . 1 Treads . | . . . . Leg 1 | . . . 1 Wheel . | . . . . Hover . | . . . . Flight . | . . . . Utility . | . . . . Device . | . . . . Storage . | . . . . Processor . | . . . . Hackware . | . . . . Protection . | . . . . Artifact . | . . . . Weapon 7 | . 2 . 5 Energy Gun . | . . . . Energy Cannon 3 | . . . 3 Ballistic Gun . | . . . . Ballistic Cannon . | . . . . Launcher 3 | . 1 . 2 Special Weapon 1 | . 1 . . Impact Weapon . | . . . . Slashing Weapon . | . . . . Piercing Weapon . | . . . . Special Melee Weapon . | . . . . Unidentified Prototypes 2 | . . . 2 Parts Lost . | . . . . Power . | . . . . Propulsion . | . . . . Utility . | . . . . Weapon . | . . . . Highest Loss Streak . | . . . . Average Slot Usage (%) 26 | . 6 25 37 Core 5 | . . . 8 Leg 5 | . . . 8 Energy Cannon 4 | . . . 7 Launcher 11 | . 6 25 13 Naked Turns 153 | . 147 . 6 Heaviest Build 27 | . 3 3 27 Greatest Support 10 | 3 3 3 10 Greatest Overweight (x) 7 | . . . 7 Average Overweight (x) . | . . . . Largest Inventory Capacity 2 | . . . 2 Average Capacity . | . . . 1 Most Carried 2 | . . . 2 Average Carried . | . . . . Final Capacity 2 | . . . 2 Final Carried . | . . . . Class Distribution -------------------- 100% | Mutant Dominant Class ---------------- Mutant | -10/Materials Mutant | -10/Mines Mutant | -10/Exiles Resources | -11 -10 -10 -10 ----------- Run | Scr Mat Min Exi Matter Collected 284 | 147 53 . 84 Remotely . | . . . . Salvage Created 421 | . 37 . 384 Parts 19 | . 11 . 8 Haulers Intercepted . | . . . . Recyclers Shooed . | . . . . Parts Field Recycled . | . . . . Retrieved Matter . | . . . . Parts Self-Destructed . | . . . . Prevented . | . . . . Kills | -11 -10 -10 -10 ------- Run | Scr Mat Min Exi Combat Hostiles Destroyed 16 | . 5 . 11 Cannons 2 | . . . 2 AOE 9 | . 5 . 4 Classes Destroyed 7 | . 4 . 3 Worker 1 | . 1 . . Builder 1 | . 1 . . Swarmer 3 | . 3 . . Grunt 5 | . 2 . 3 Brawler 2 | . . . 2 Hunter 2 | . . . 2 Programmer 4 | . . . 4 Best Kill Streak 9 | . 7 . 9 Combat Bots Only 9 | . 5 . 9 Max Kills in Single Turn 3 | . 3 . 3 Gunslinging . | . . . . Exploded 2 | . 2 . 2 Melee . | . . . . Uniques/NPCs Destroyed . | . . . . Combat | -11 -10 -10 -10 -------- Run | Scr Mat Min Exi Damage Taken 1086 | . 320 . 766 Core 940 | . 315 . 625 Absorbed by Shields . | . . . . Redirected to Core 501 | . 16 . 485 Core Remaining (%) 100 | 100 . . . Volleys Fired 19 | . 6 . 13 Largest 1 | . 1 . 1 Hottest 250 | . 30 . 250 Shots Fired 19 | . 6 . 13 Gun . | . . . . Cannon 13 | . . . 13 Launcher 6 | . 6 . . Special . | . . . . Kinetic . | . . . . Thermal 13 | . . . 13 Explosive 6 | . 6 . . Electromagnetic . | . . . . Robot Hit Streak 5 | . 2 . 5 Robot Miss Streak 3 | . 1 . 3 Penetration Max . | . . . . Secondary Targets . | . . . . Shots Hit Robots 12 | . 2 . 10 Core Hits 38 | . 10 . 28 Critical Hits . | . . . . Critical Kills . | . . . . Critical Parts Destroyed . | . . . . Melee Attacks . | . . . . Impact . | . . . . Slashing . | . . . . Piercing . | . . . . Sneak Attacks . | . . . . Combat Hostiles . | . . . . Follow-up Attacks . | . . . . Damage Inflicted 1685 | . 534 . 1151 Guns . | . . . . Cannons 263 | . . . 263 Explosions 1419 | . 531 . 888 Melee . | . . . . Ramming 3 | . 3 . . Kinetic . | . . . . Thermal 1229 | . 78 . 1151 Explosive 453 | . 453 . . Electromagnetic . | . . . . Impact . | . . . . Slashing . | . . . . Piercing . | . . . . Highest Corruption 1 | . . . 1 Average Corruption 1 | . . . 1 Corruption Purged . | . . . . Overload Shots . | . . . . Overflow Damage 111 | . 90 . 21 Projectiles . | . . . . Explosions 111 | . 90 . 21 Melee . | . . . . Knockbacks . | . . . . Impact . | . . . . Kinetic . | . . . . Secondary . | . . . . Self-Inflicted Damage 77 | . 23 . 54 Shots 6 | . 1 . 5 Rammed 1 | . 1 . . Targets Rammed 1 | . 1 . . Kicked . | . . . . Crushed . | . . . . Highest Temperature 126 | . 5 . 126 Average Temperature 34 | . 3 . 36 Received Heat Transfer 108 | . 78 . 30 Siege Activations . | . . . . Robots Corrupted . | . . . . Combat Hostiles . | . . . . Parts Fried . | . . . . Impact Corruptions . | . . . . Robots Melted 5 | . . . 5 Combat Hostiles 5 | . . . 5 Parts Melted 20 | . . . 20 Heat Transferred 6290 | . 50 . 6240 Parts Sabotaged . | . . . . Parts Stolen . | . . . . Parts Stripped . | . . . . Power Chain Reactions . | . . . . Missiles Intercepted . | . . . . Alert | -11 -10 -10 -10 ------- Run | Scr Mat Min Exi Peak Influence 190 | . 190 73 . Average Influence 41 | . 41 73 . Maximum Alert Level . | . . . . Low Security (%) 100 | 100 100 100 . Level 1 . | . . . . Level 2 . | . . . . Level 3 . | . . . . Level 4 . | . . . . Level 5 . | . . . . High Security . | . . . . Max Security . | . . . . Squads Dispatched 1 | . 1 . . Investigation . | . . . . Extermination . | . . . . Reinforcement 1 | . 1 . . Assault . | . . . . Garrison . | . . . . Intercept . | . . . . Construction Impeded . | . . . . Haulers Reinforced . | . . . . Stealth | -11 -10 -10 -10 --------- Run | Scr Mat Min Exi Distress Signals . | . . . . Communications Jammed . | . . . . Distress Signals . | . . . . Times Spotted 44 | . 15 . 29 Peak Tracking Total 20 | . 6 . 20 Tactical Retreats 5 | . 2 . 3 Traps | -11 -10 -10 -10 ------- Run | Scr Mat Min Exi Traps Triggered . | . . . . Indirectly . | . . . . Trap Hack Attempts . | . . . . Triggered . | . . . . Disarmed . | . . . . Reprogrammed . | . . . . Reused . | . . . . Traps Extracted . | . . . . Installed . | . . . . Triggered . | . . . . Machines | -11 -10 -10 -10 ---------- Run | Scr Mat Min Exi Machines Disabled 5 | . 2 . 3 Max in Single Turn 2 | . 2 . 1 Machines Sabotaged . | . . . . Garrisons Compromised . | . . . . Overloaded Fab Kills . | . . . . Fab Network Shutdowns . | . . . . Hacking | -11 -10 -10 -10 --------- Run | Scr Mat Min Exi Machines Accessed 1 | . 1 . . Terminals 1 | . 1 . . Fabricators . | . . . . Repair Stations . | . . . . Recycling Units . | . . . . Scanalyzers . | . . . . Garrison Access . | . . . . Total Hacks 2 | . 2 . . Successful . | . . . . Failed 2 | . 2 . . Catastrophic . | . . . . Database Lockouts . | . . . . Manual 3 | . 2 . 1 Terminals 2 | . 2 . . Fabricators . | . . . . Repair Stations . | . . . . Recycling Units . | . . . . Scanalyzers . | . . . . Garrison Access . | . . . . Terminal Hacks . | . . . . Fabricator Hacks . | . . . . Repair Station Hacks . | . . . . Recycling Unit Hacks . | . . . . Scanalyzer . | . . . . Garrison Access Hacks . | . . . . Unauthorized Hacks . | . . . . Terminals . | . . . . Fabricators . | . . . . Repair Stations . | . . . . Recycling Units . | . . . . Scanalyzers . | . . . . Garrison Access . | . . . . Data Cores Recovered . | . . . . Used . | . . . . Hacking Detections 1 | . 1 . . Full Trace Events 1 | . 1 . . Feedback Events . | . . . . Feedback Blocked . | . . . . Robot Schematics Acquired . | . . . . Robots Built . | . . . . Matter . | . . . . Time . | . . . . Total Robot Build Rating . | . . . . Part Schematics Acquired . | . . . . Parts Built . | . . . . Matter . | . . . . Time . | . . . . Total Part Build Rating . | . . . . Parts Repaired . | . . . . Time . | . . . . Parts Recycled . | . . . . Recycled Matter . | . . . . Retrieved Matter . | . . . . Retrieved Components . | . . . . Parts Scanalyzed . | . . . . Part Schematics Acquired . | . . . . Parts Damaged . | . . . . Bothacking | -11 -10 -10 -10 ------------ Run | Scr Mat Min Exi Used RIF Installer . | . . . . Robots Hacked . | . . . . Non-combat . | . . . . Combat . | . . . . Robot Hacks Applied . | . . . . Relay Couplers Released . | . . . . Robots Rewired . | . . . . Allies Hacked . | . . . . Hacks Repelled . | . . . . Allies | -11 -10 -10 -10 -------- Run | Scr Mat Min Exi Total Allies . | . . . . Largest Group . | . . . . Highest-Rated Group . | . . . . Highest-Rated Ally . | . . . . Total Orders . | . . . . Ally Attacks 59 | . . . 59 Total Damage 2778 | . . . 2778 Kills 20 | . . . 20 Allies Corrupted . | . . . . Allies Melted . | . . . . Turrets Deployed 2 | . . . 2 Intel | -11 -10 -10 -10 ------- Run | Scr Mat Min Exi Robot Analysis Total . | . . . . Derelict Logs Recovered . | . . . . Drone Launches . | . . . . Drone Recoveries . | . . . . Exploration | -11 -10 -10 -10 ------------- Run | Scr Mat Min Exi Turns Passed 583 | 9 193 8 373 Spaces Moved 737 | 18 298 16 405 Core 689 | 18 298 16 357 Treads . | . . . . Legs 48 | . . . 48 Wheels . | . . . . Hover . | . . . . Flight . | . . . . Fastest Speed 50 | 50 50 50 50 Average Speed 60 | 50 50 50 69 Slowest Speed 400 | 50 50 50 400 Overloaded Moves . | . . . . Propulsion Burnouts . | . . . . Robots Hopped . | . . . . Cave-ins Triggered . | . . . . Time Travels 1 | . . . 1 Exploration Rate (%) 23 | 3 42 5 45 Regions Visited 3 Branch Regions 2 Pre-discovered Areas . | . . . . Known Exits Taken . | . . . . Unknown Exits Taken 3 | 1 1 1 . Scrap Searched 1 | . . 1 . Spaces Dug . | . . . . Terrain Destroyed 99 | . 64 . 35 Melee . | . . . . Projectile 2 | . . . 2 AOE 97 | . 64 . 33 Actions | -11 -10 -10 -10 --------- Run | Scr Mat Min Exi Total 850 | 17 334 15 484 Wait 59 | . 20 . 39 Move 734 | 17 297 15 405 Hop . | . . . . Pick Up 3 | . . . 3 Fast Attach 7 | . 2 . 5 Attach 2 | . . . 2 Detach 2 | . . . 2 Swap . | . . . . Drop 7 | . 1 . 6 Fire 19 | . 6 . 13 Melee . | . . . . Ram 1 | . 1 . . Kick . | . . . . Crush . | . . . . Escape Stasis . | . . . . Rewire . | . . . . Trap . | . . . . Miscellaneous 16 | . 7 . 9 Route ------- -11/Scrapyard -10/Materials (discovered 2 exits: [*Mat] / [*Min]) -10/Mines -10/Exiles History --------- Turn | Location | Event 3 | -11/Scrapyard | Discovered new exit (range 15) 10 | -11/Scrapyard | Entered Materials 39 | -10/Materials | Discovered new exit (range 4) 165 | -10/Materials | Core integrity fell below 50% 194 | -10/Materials | Discovered new exit (range 13) 203 | -10/Materials | Entered Mines 209 | -10/Mines | Deemed a non-threat by the Exiles lab entrance 209 | -10/Mines | Discovered new exit (range 5) 211 | -10/Mines | Entered Exiles 224 | -10/Exiles | Met 8R-AWN 233 | -10/Exiles | Met EX-HEX 246 | -10/Exiles | Met EX-BIN 252 | -10/Exiles | Reached level 2 252 | -10/Exiles | Aligned with FarCom system 253 | -10/Exiles | Given EX-Vault access code 265 | -10/Exiles | Opened EX-Vault 267 | -10/Exiles | Upgraded with Weapon slot (x1) 268 | -10/Exiles | Found Prototype Energy Cannon 268 | -10/Exiles | Identified Firepult 293 | -10/Exiles | Found Prototype Device 293 | -10/Exiles | Identified Chronowheel 293 | -10/Exiles | Activated Chronowheel 293 | -10/Exiles | Spacetime reconverged on an earlier point 310 | -10/Exiles | Warned to stay clear of 0b10 Research branches 311 | -10/Exiles | Exiles lab attacked by MAIN.C 318 | -10/Exiles | Build established: Mutant 337 | -10/Exiles | Found Deploy-a-Sentry 338 | -10/Exiles | Found Deploy-a-Sentry 365 | -10/Exiles | DAS Turret deployed 366 | -10/Exiles | DAS Turret deployed 451 | -10/Exiles | Reached level 3 473 | -10/Exiles | Attacked by the Exiles 479 | -10/Exiles | Reached level 4 508 | -10/Exiles | Destroyed 9 combat bots 577 | -10/Exiles | Core integrity fell below 20% 584 | -10/Exiles | Destroyed by 8R-AWN with 8R-AWN's Boregun Last Messages --------------- 00571_ HV Slug penetrates Wall. 00573_ Penetrated by HV Slug. 00573_ HV Slug penetrates Wall. 00573_ HV Slug penetrates Machine. 00573_ Machine disabled. 00573_ HV Slug penetrates Machine. 00576_ Penetrated by HV Slug. 00576_ HV Slug penetrates Machine. 00576_ Penetrated by HV Slug. 00579_ HV Slug penetrates Machine. 00579_ Penetrated by HV Slug. 00579_ HV Slug penetrates Machine. 00581_ Slug penetrates 8R-AWN. 00581_ Penetrated by HV Slug. 00583_ Target Analyzer melted. 00583_ Imp. Heat Sink melted. 00583_ Lgt. Angular Momentum Engine melted. 00583_ P-60 Hacker destroyed. 00583_ Penetrated by Slug. 00584_ Penetrated by HV Slug. Map ----- +----------------------------------------------------+ | ????????????????????# """#????????????? | | ????????????????????#" "X" """"????????????? | | ????????????????????#" """ #????????????? | | ????????????????????#" """""""""#????????????? | | ???????????????????##" ###########????????????? | | ??????????????????##"" #??????????????????????? | | ????????????????###"" #??????????????????????? | | ??????????????""""""" ##?????????????????????? | | ??????????????"" " "" ##???###########??????? | | ?????????????""" " #####"""""""""##?????? | | ???????????" " " """ """"##????? | | ????????? "" " #????? | | ????????? """#????? | | ?????????? " "#????? | | ?????????? ##???? | | ??????????? ###?? | | ??????????? """ "" ] ### | | ??????????? ######""" * # | | ???????????? ""#?????#####"" % % | | ????????????"""???????????##" = | | ???????????????????????????# % = | | ??????????????????????????## [ ** * | | ????????????????#??????#### [% / % | | ???????????? ##aaa####"" g *=== | | ?????????? "" = % | | ?????????? @ | | ?????????? % | | ?????????? " % ## | | ??????????? "" "" %% "#? | | ??????????? ;; ##""" " " ""# "##? | | ???????????? ""#### ?#####""" """##"" """"##?? | | ???????????? ""?"????# ?????###""""###########??? | | ?????????????????????# ????????######????????????? | | ?????????????????????! ??????????????????????????? | | ?????????????????????" ??????????????????????????? | | ????????????????????#"???????????????????????????? | | ?????????????????????!???????????????????????????? | | ?????????????????????????????????????????????????? | | ?????????????????????????????????????????????????? | | ?????????????????????????????????????????????????? | | ?????????????????????????????????????????????????? | | ?????????????????????????????????????????????????? | | ?????????????????????????????????????????????????? | | ?????????????????????????????????????????????????? | | ?????????????????????????????????????????????????? | | ?????????????????????????????????????????????????? | | ?????????????????????????????????????????????????? | | ?????????????????????????????????????????????????? | | ?????????????????????????????????????????????????? | | ?????????????????????????????????????????????????? | +----------------------------------------------------+ Best States ------------- Heat Dissipation 121 Energy Generation 14 Energy Capacity 160 Matter Stores 252 Matter Capacity 300 Sight Range 16 Terrain Scan Density 10 Evasion (%) 50 Item Schematics ----------------- None Robot Schematics ------------------ None Fabricated ------------ Nothing Alien Tech Used ----------------- None Achievements -------------- None Challenges ------------ None RPGLIKE | -11 -10 -10 -10 --------- Run | Scr Mat Min Exi Levels Raised 3 | . . . 3 XP Earned 8381 | 3000 750 500 4131 XP Spent 4450 | . . . 4450 Upgrades 19 | . . . 19 Weapon Slot 1 | . . . 1 Heat Dissipation 16 | . . . 16 Inventory Capacity 2 | . . . 2 Protomatter Created 223 | . 48 . 175 Integrity Restored 327 | . 135 . 192 Core 327 | . 135 . 192 Protomatter Decayed 74 | . . . 74 Game ------ Seed DataVortexWings Manual? 0 Play Time 00:10:46 Cumulative 1036.5 hours Start 2020.04.28 @ 19:59:00 End 2020.04.28 @ 20:10:59 Sessions 1 Manual Loads 0 Difficulty Rogue Special Mode Winter2019/RPGLIKE Game No. 628 Rogue 628 Adventurer 0 Explorer 0 Win Type - Total 18 Types 10/1/4/3/0/0/0 Lore% 89 Gallery% 94 Achievement% 80 Wizard Run 0 Options --------- ASCII 0 Keyboard 0 Movement Mouse Keybinds 0 Fullscreen 2 Font 24/Crisp Map View 76x50 Tactical HUD 1 Map Filters NONE Filters NONE Steam X RUN: d94dbca0-d878-4b17-801f-7abe110a8f8b